[Event "*** Titled Tuesday Blitz"]
[Site "Chess.com"]
[Date "2020.04.28"]
[Round "1"]
[White "Maghalashvili"]
[Black "MrRooke6"]
[Result "1-0"]
[WhiteElo "2802"]
[BlackElo "2422"]
[TimeControl "180+1"]
[EndTime "10:01:53 PDT"]
[Termination "Maghalashvili won by resignation"]

1. Nf3 {[%clk 0:02:58.1]} 1... Nf6 {[%clk 0:02:59.8]} 2. g3 {[%clk 0:02:58.3]}
2... g6 {[%clk 0:03:00.1]} 3. b3 {[%clk 0:02:57.3]} 3... Bg7 {[%clk 0:03:00.2]}
4. Bb2 {[%clk 0:02:58]} 4... O-O {[%clk 0:03:00.4]} 5. Bg2 {[%clk 0:02:58]} 5...
d6 {[%clk 0:03:00.7]} 6. d4 {[%clk 0:02:57.9]} 6... a5 {[%clk 0:02:55.9]} 7. a4
{[%clk 0:02:55.2]} 7... c6 {[%clk 0:02:55.7]} 8. O-O {[%clk 0:02:54.9]} 8... d5
{[%clk 0:02:56]} 9. c4 {[%clk 0:02:49.7]} 9... Na6 {[%clk 0:02:53.7]} 10. Nc3
{[%clk 0:02:48.6]} 10... Nb4 {[%clk 0:02:53.7]} 11. Rc1 {[%clk 0:02:47.9]} 11...
dxc4 {[%clk 0:02:52.7]} 12. bxc4 {[%clk 0:02:47.6]} 12... Be6 {[%clk 0:02:52.9]}
13. Qb3 {[%clk 0:02:36.1]} 13... Qd6 {[%clk 0:02:43.5]} 14. e4 {[%clk
0:02:30.3]} 14... Qb8 {[%clk 0:02:30.5]} 15. d5 {[%clk 0:02:26.6]} 15... Bf5
{[%clk 0:02:30.6]} 16. exf5 {[%clk 0:02:24.6]} 1-0

[Event "*** Titled Tuesday Blitz"]
[Site "Chess.com"]
[Date "2020.04.28"]
[Round "1"]
[White "SameerMujumdar"]
[Black "DrVitman"]
[Result "1/2-1/2"]
[WhiteElo "2243"]
[BlackElo "2563"]
[TimeControl "180+1"]
[EndTime "10:01:55 PDT"]
[Termination "Game drawn by repetition"]

1. d4 {[%clk 0:03:00.6]} 1... Nf6 {[%clk 0:02:59.2]} 2. c4 {[%clk 0:02:57.4]}
2... g6 {[%clk 0:02:58.7]} 3. Nc3 {[%clk 0:02:55.7]} 3... d5 {[%clk 0:02:58.7]}
4. cxd5 {[%clk 0:02:54.1]} 4... Nxd5 {[%clk 0:02:59.6]} 5. Nf3 {[%clk
0:02:54.2]} 5... Nxc3 {[%clk 0:02:56.4]} 6. bxc3 {[%clk 0:02:54.1]} 6... Bg7
{[%clk 0:02:57.3]} 7. e3 {[%clk 0:02:53.1]} 7... O-O {[%clk 0:02:57.5]} 8. Bd3
{[%clk 0:02:53.4]} 8... c5 {[%clk 0:02:48.8]} 9. O-O {[%clk 0:02:54.3]} 9... Nc6
{[%clk 0:02:38.2]} 10. a4 {[%clk 0:02:55.2]} 10... b6 {[%clk 0:02:31.5]} 11. Ba3
{[%clk 0:02:43]} 11... cxd4 {[%clk 0:02:26.9]} 12. cxd4 {[%clk 0:02:42.7]} 12...
Bb7 {[%clk 0:02:24.8]} 13. Qe2 {[%clk 0:02:42.5]} 13... Na5 {[%clk 0:02:20.1]}
14. Bb4 {[%clk 0:02:38.4]} 14... Nc6 {[%clk 0:02:18.5]} 15. Ba3 {[%clk
0:02:32.9]} 15... Na5 {[%clk 0:02:18.2]} 16. Bb4 {[%clk 0:02:30.4]} 16... Nc6
{[%clk 0:02:18.2]} 17. Ba3 {[%clk 0:02:30.2]} 1/2-1/2

[Event "*** Titled Tuesday Blitz"]
[Site "Chess.com"]
[Date "2020.04.28"]
[Round "1"]
[White "noblerone"]
[Black "sergiochess83"]
[Result "0-1"]
[WhiteElo "2430"]
[BlackElo "2829"]
[TimeControl "180+1"]
[EndTime "10:02:08 PDT"]
[Termination "sergiochess83 won by resignation"]

1. d4 {[%clk 0:03:00.5]} 1... Nf6 {[%clk 0:02:59.1]} 2. Nf3 {[%clk 0:03:00.2]}
2... d5 {[%clk 0:02:58.5]} 3. Bg5 {[%clk 0:02:57.2]} 3... c6 {[%clk 0:02:49.6]}
4. c3 {[%clk 0:02:55.7]} 4... Bf5 {[%clk 0:02:47.1]} 5. Qb3 {[%clk 0:02:52.1]}
5... Qb6 {[%clk 0:02:44.9]} 6. Nbd2 {[%clk 0:02:52.6]} 6... Nbd7 {[%clk
0:02:44.5]} 7. e3 {[%clk 0:02:52.2]} 7... h6 {[%clk 0:02:42.8]} 8. Bh4 {[%clk
0:02:52.1]} 8... e6 {[%clk 0:02:43.1]} 9. h3 {[%clk 0:02:51.9]} 9... Bd6 {[%clk
0:02:42.2]} 10. Bxf6 {[%clk 0:02:40.5]} 10... Nxf6 {[%clk 0:02:41.3]} 11. Be2
{[%clk 0:02:39.2]} 11... O-O {[%clk 0:02:37.2]} 12. O-O {[%clk 0:02:38.8]} 12...
Qc7 {[%clk 0:02:33.8]} 13. c4 {[%clk 0:02:38.2]} 13... Rad8 {[%clk 0:02:31.5]}
14. Rac1 {[%clk 0:02:37.9]} 14... Qe7 {[%clk 0:02:31.5]} 15. Bd3 {[%clk
0:02:35.4]} 15... Ne4 {[%clk 0:02:29.9]} 16. Bxe4 {[%clk 0:02:26.5]} 16... dxe4
{[%clk 0:02:27.9]} 17. Ne5 {[%clk 0:02:16.8]} 17... Bxe5 {[%clk 0:02:27.6]} 18.
dxe5 {[%clk 0:02:16.4]} 18... Rxd2 {[%clk 0:02:27.6]} 0-1

[Event "*** Titled Tuesday Blitz"]
[Site "Chess.com"]
[Date "2020.04.28"]
[Round "1"]
[White "lifeissofun"]
[Black "Firegrizzly"]
[Result "1-0"]
[WhiteElo "2346"]
[BlackElo "2640"]
[TimeControl "180+1"]
[EndTime "10:02:31 PDT"]
[Termination "lifeissofun won by checkmate"]

1. e4 {[%clk 0:03:00.9]} 1... e6 {[%clk 0:02:56.6]} 2. d4 {[%clk 0:03:00.2]}
2... d5 {[%clk 0:02:57.5]} 3. Nd2 {[%clk 0:03:00.7]} 3... Be7 {[%clk 0:02:54.8]}
4. c3 {[%clk 0:02:59.8]} 4... c5 {[%clk 0:02:52.8]} 5. Ngf3 {[%clk 0:02:58.3]}
5... cxd4 {[%clk 0:02:51]} 6. cxd4 {[%clk 0:02:58.1]} 6... dxe4 {[%clk 0:02:51]}
7. Nxe4 {[%clk 0:02:58.4]} 7... Nf6 {[%clk 0:02:51.1]} 8. Bd3 {[%clk 0:02:58.3]}
8... Nc6 {[%clk 0:02:46.9]} 9. O-O {[%clk 0:02:50.8]} 9... O-O {[%clk
0:02:46.2]} 10. Be3 {[%clk 0:02:47.1]} 10... b6 {[%clk 0:02:42.5]} 11. Qc2
{[%clk 0:02:46.4]} 11... Nb4 {[%clk 0:02:37.2]} 12. Nxf6+ {[%clk 0:02:44.1]}
12... gxf6 {[%clk 0:02:24.7]} 13. Bxh7+ {[%clk 0:02:43.2]} 13... Kg7 {[%clk
0:02:24.4]} 14. Qe4 {[%clk 0:02:43.4]} 14... Ba6 {[%clk 0:02:18.9]} 15. Qh4
{[%clk 0:02:33.6]} 15... Qd5 {[%clk 0:01:47.5]} 16. Qh6+ {[%clk 0:02:31.7]}
16... Kh8 {[%clk 0:01:47.6]} 17. Bg6+ {[%clk 0:02:31.4]} 17... Kg8 {[%clk
0:01:47.7]} 18. Qh7# {[%clk 0:02:32.1]} 1-0

[Event "*** Titled Tuesday Blitz"]
[Site "Chess.com"]
[Date "2020.04.28"]
[Round "1"]
[White "LucaBrasi1968"]
[Black "vaps"]
[Result "1-0"]
[WhiteElo "2480"]
[BlackElo "1952"]
[TimeControl "180+1"]
[EndTime "10:02:31 PDT"]
[Termination "LucaBrasi1968 won by resignation"]

1. e4 {[%clk 0:02:56.7]} 1... c5 {[%clk 0:03:00]} 2. c3 {[%clk 0:02:56.7]} 2...
e6 {[%clk 0:02:59.3]} 3. d4 {[%clk 0:02:56.4]} 3... Nf6 {[%clk 0:02:59.2]} 4.
Bd3 {[%clk 0:02:55.1]} 4... d6 {[%clk 0:02:53]} 5. Be3 {[%clk 0:02:54.3]} 5...
Be7 {[%clk 0:02:46.6]} 6. f3 {[%clk 0:02:51.1]} 6... O-O {[%clk 0:02:44]} 7. Ne2
{[%clk 0:02:50.9]} 7... Nc6 {[%clk 0:02:27.6]} 8. a3 {[%clk 0:02:48.2]} 8... Rb8
{[%clk 0:02:07.8]} 9. O-O {[%clk 0:02:44.9]} 9... b5 {[%clk 0:02:03.1]} 10. b4
{[%clk 0:02:44.5]} 10... c4 {[%clk 0:01:56.8]} 11. Bc2 {[%clk 0:02:44.3]} 11...
e5 {[%clk 0:01:51.8]} 12. d5 {[%clk 0:02:32.3]} 1-0

[Event "*** Titled Tuesday Blitz"]
[Site "Chess.com"]
[Date "2020.04.28"]
[Round "1"]
[White "aakankshachess"]
[Black "dvella"]
[Result "1-0"]
[WhiteElo "2474"]
[BlackElo "1806"]
[TimeControl "180+1"]
[EndTime "10:02:43 PDT"]
[Termination "aakankshachess won by resignation"]

1. e4 {[%clk 0:03:00.9]} 1... c5 {[%clk 0:02:59.6]} 2. Nf3 {[%clk 0:03:00.6]}
2... d6 {[%clk 0:02:59.8]} 3. Bb5+ {[%clk 0:03:00.1]} 3... Bd7 {[%clk
0:02:59.2]} 4. Bxd7+ {[%clk 0:03:00]} 4... Qxd7 {[%clk 0:02:59.4]} 5. c4 {[%clk
0:03:00.1]} 5... g6 {[%clk 0:02:58.9]} 6. Nc3 {[%clk 0:02:59.5]} 6... Bg7 {[%clk
0:02:59]} 7. d4 {[%clk 0:02:59.6]} 7... cxd4 {[%clk 0:02:58]} 8. Nxd4 {[%clk
0:02:59.9]} 8... Nf6 {[%clk 0:02:57.9]} 9. b3 {[%clk 0:02:57.9]} 9... O-O {[%clk
0:02:57.6]} 10. Bb2 {[%clk 0:02:58]} 10... Nc6 {[%clk 0:02:57.5]} 11. O-O {[%clk
0:02:58.2]} 11... a6 {[%clk 0:02:55.6]} 12. Nxc6 {[%clk 0:02:56.4]} 12... bxc6
{[%clk 0:02:54.8]} 13. Re1 {[%clk 0:02:56]} 13... Qe6 {[%clk 0:02:37]} 14. Qd3
{[%clk 0:02:52.1]} 14... Ng4 {[%clk 0:02:31.6]} 15. Rad1 {[%clk 0:02:44.4]}
15... Rad8 {[%clk 0:02:25.6]} 16. h3 {[%clk 0:02:40.7]} 16... Ne5 {[%clk
0:02:23.7]} 17. Qc2 {[%clk 0:02:40.7]} 17... c5 {[%clk 0:02:20]} 18. Nd5 {[%clk
0:02:39.5]} 18... Nc6 {[%clk 0:02:17.5]} 19. Nc7 {[%clk 0:02:32.8]} 19... Qd7
{[%clk 0:02:06.7]} 20. Nd5 {[%clk 0:02:31.9]} 20... Bxb2 {[%clk 0:02:03.7]} 21.
Qxb2 {[%clk 0:02:31.8]} 21... Nd4 {[%clk 0:02:03.7]} 22. Rd3 {[%clk 0:02:27.6]}
22... e5 {[%clk 0:01:54.9]} 23. Nf6+ {[%clk 0:02:26.8]} 1-0

[Event "*** Titled Tuesday Blitz"]
[Site "Chess.com"]
[Date "2020.04.28"]
[Round "1"]
[White "ApacheSVD"]
[Black "rogapa"]
[Result "0-1"]
[WhiteElo "2406"]
[BlackElo "2761"]
[TimeControl "180+1"]
[EndTime "10:02:56 PDT"]
[Termination "rogapa won by resignation"]

1. e4 {[%clk 0:02:59.6]} 1... c5 {[%clk 0:02:59.8]} 2. Nf3 {[%clk 0:02:58.9]}
2... d6 {[%clk 0:02:59.8]} 3. d4 {[%clk 0:02:56.5]} 3... cxd4 {[%clk 0:03:00.7]}
4. Nxd4 {[%clk 0:02:56.7]} 4... Nf6 {[%clk 0:03:01.2]} 5. Nc3 {[%clk 0:02:53.3]}
5... a6 {[%clk 0:03:01.4]} 6. Qf3 {[%clk 0:02:53.3]} 6... g6 {[%clk 0:02:59.6]}
7. h3 {[%clk 0:02:53.5]} 7... Bg7 {[%clk 0:02:59.9]} 8. Be3 {[%clk 0:02:53.9]}
8... O-O {[%clk 0:02:59.9]} 9. g4 {[%clk 0:02:54.4]} 9... Nc6 {[%clk 0:02:59.6]}
10. O-O-O {[%clk 0:02:54.4]} 10... Bd7 {[%clk 0:02:59.3]} 11. Qg2 {[%clk
0:02:54.3]} 11... Rc8 {[%clk 0:02:58.6]} 12. f4 {[%clk 0:02:54.7]} 12... b5
{[%clk 0:02:56.4]} 13. a3 {[%clk 0:02:52.5]} 13... b4 {[%clk 0:02:55.6]} 14.
axb4 {[%clk 0:02:52.2]} 14... Nxb4 {[%clk 0:02:56.5]} 15. Be2 {[%clk 0:02:46.7]}
15... Qa5 {[%clk 0:02:54.9]} 16. Nb3 {[%clk 0:02:46.5]} 16... Na2+ {[%clk
0:02:51.1]} 17. Kd2 {[%clk 0:02:11.9]} 17... Qb4 {[%clk 0:02:44.4]} 18. g5
{[%clk 0:01:25.9]} 18... Nxc3 {[%clk 0:02:37.1]} 0-1

[Event "*** Titled Tuesday Blitz"]
[Site "Chess.com"]
[Date "2020.04.28"]
[Round "1"]
[White "GianmarcoVaR"]
[Black "Playgood28"]
[Result "1/2-1/2"]
[WhiteElo "2558"]
[BlackElo "2232"]
[TimeControl "180+1"]
[EndTime "10:02:57 PDT"]
[Termination "Game drawn by agreement"]

1. d4 {[%clk 0:03:00.2]} 1... f5 {[%clk 0:02:58.6]} 2. c4 {[%clk 0:03:00.5]}
2... Nf6 {[%clk 0:02:56.2]} 3. Nf3 {[%clk 0:03:01.1]} 3... g6 {[%clk 0:02:54.9]}
4. g3 {[%clk 0:03:01.7]} 4... Bg7 {[%clk 0:02:55]} 5. Bg2 {[%clk 0:03:02.4]}
5... d6 {[%clk 0:02:55.4]} 6. O-O {[%clk 0:03:03.1]} 6... O-O {[%clk 0:02:55.9]}
7. Nbd2 {[%clk 0:03:02]} 7... c6 {[%clk 0:02:54.3]} 8. b3 {[%clk 0:03:00.6]}
8... Qc7 {[%clk 0:02:53]} 9. Bb2 {[%clk 0:02:58.9]} 9... Re8 {[%clk 0:02:52.4]}
10. c5 {[%clk 0:02:42.5]} 10... dxc5 {[%clk 0:02:48.1]} 11. dxc5 {[%clk
0:02:42.5]} 11... e5 {[%clk 0:02:47.5]} 12. Nc4 {[%clk 0:02:41.9]} 12... e4
{[%clk 0:02:45.8]} 13. Ng5 {[%clk 0:02:35.8]} 13... h6 {[%clk 0:02:38]} 14. Nh3
{[%clk 0:02:35.6]} 14... g5 {[%clk 0:02:37.8]} 15. Qd6 {[%clk 0:02:30.5]} 15...
Qxd6 {[%clk 0:02:23.2]} 16. Nxd6 {[%clk 0:02:31.4]} 16... Rf8 {[%clk 0:02:19.9]}
17. f3 {[%clk 0:02:25.4]} 17... exf3 {[%clk 0:02:18.5]} 18. exf3 {[%clk
0:02:26.3]} 18... Na6 {[%clk 0:02:18.3]} 19. Rac1 {[%clk 0:01:59.5]} 1/2-1/2

[Event "*** Titled Tuesday Blitz"]
[Site "Chess.com"]
[Date "2020.04.28"]
[Round "1"]
[White "donotreadit"]
[Black "Dobuchak"]
[Result "1-0"]
[WhiteElo "2682"]
[BlackElo "2347"]
[TimeControl "180+1"]
[EndTime "10:03:12 PDT"]
[Termination "donotreadit won by resignation"]

1. d4 {[%clk 0:03:00.7]} 1... Nf6 {[%clk 0:02:55.6]} 2. Bg5 {[%clk 0:02:58.8]}
2... e6 {[%clk 0:02:55.3]} 3. e4 {[%clk 0:02:57.9]} 3... c5 {[%clk 0:02:55.8]}
4. d5 {[%clk 0:02:54.2]} 4... d6 {[%clk 0:02:55]} 5. dxe6 {[%clk 0:02:53.9]}
5... Bxe6 {[%clk 0:02:53.1]} 6. Nc3 {[%clk 0:02:53.7]} 6... Nbd7 {[%clk
0:02:48.3]} 7. Nb5 {[%clk 0:02:49.2]} 7... Qb6 {[%clk 0:02:37.2]} 8. a4 {[%clk
0:02:31.3]} 8... Nxe4 {[%clk 0:02:25.1]} 9. Bf4 {[%clk 0:02:31.8]} 9... a6
{[%clk 0:02:20.5]} 10. a5 {[%clk 0:02:28]} 10... Qc6 {[%clk 0:02:18.9]} 11. Na3
{[%clk 0:02:26.8]} 11... d5 {[%clk 0:02:10.4]} 12. Nf3 {[%clk 0:02:26.8]} 12...
Bd6 {[%clk 0:02:07.1]} 13. Bxd6 {[%clk 0:02:26.8]} 13... Qxd6 {[%clk 0:02:06.7]}
14. Bd3 {[%clk 0:02:27.5]} 14... Nef6 {[%clk 0:02:04.8]} 15. O-O {[%clk
0:02:27.7]} 15... O-O {[%clk 0:02:04.5]} 16. Nc4 {[%clk 0:02:28.4]} 16... dxc4
{[%clk 0:02:03.9]} 17. Bxh7+ {[%clk 0:02:26.4]} 17... Nxh7 {[%clk 0:02:04.8]}
18. Qxd6 {[%clk 0:02:26.6]} 18... Nhf6 {[%clk 0:01:58.3]} 19. Rad1 {[%clk
0:02:23.1]} 19... Ne4 {[%clk 0:01:55]} 20. Qc7 {[%clk 0:02:20.1]} 20... Rfc8
{[%clk 0:01:40.6]} 21. Qxb7 {[%clk 0:02:16.1]} 21... Rab8 {[%clk 0:01:33.4]} 22.
Qxe4 {[%clk 0:02:14.7]} 1-0

[Event "*** Titled Tuesday Blitz"]
[Site "Chess.com"]
[Date "2020.04.28"]
[Round "1"]
[White "Dixit_Nikhil"]
[Black "eljanov"]
[Result "0-1"]
[WhiteElo "2454"]
[BlackElo "2891"]
[TimeControl "180+1"]
[EndTime "10:03:45 PDT"]
[Termination "eljanov won by resignation"]

1. e4 {[%clk 0:02:50.2]} 1... c6 {[%clk 0:02:59.6]} 2. Nc3 {[%clk 0:02:47.3]}
2... d5 {[%clk 0:03:00.5]} 3. Nf3 {[%clk 0:02:45.1]} 3... Bg4 {[%clk 0:03:00.6]}
4. h3 {[%clk 0:02:43.1]} 4... Bxf3 {[%clk 0:03:00.2]} 5. Qxf3 {[%clk 0:02:44]}
5... e6 {[%clk 0:03:01.1]} 6. g3 {[%clk 0:02:40.3]} 6... Nf6 {[%clk 0:03:01.3]}
7. Bg2 {[%clk 0:02:39]} 7... Bc5 {[%clk 0:03:00.3]} 8. O-O {[%clk 0:02:37.2]}
8... Nbd7 {[%clk 0:02:54.8]} 9. d3 {[%clk 0:02:35.9]} 9... O-O {[%clk 0:02:54]}
10. Bg5 {[%clk 0:02:32.1]} 10... h6 {[%clk 0:02:51.9]} 11. Bxf6 {[%clk
0:02:28.8]} 11... Qxf6 {[%clk 0:02:49.6]} 12. Qxf6 {[%clk 0:02:27.3]} 12... Nxf6
{[%clk 0:02:50.5]} 13. e5 {[%clk 0:02:19.4]} 13... Nd7 {[%clk 0:02:49]} 14. Ne2
{[%clk 0:02:20]} 14... Bb6 {[%clk 0:02:40.8]} 15. d4 {[%clk 0:02:16.3]} 15... c5
{[%clk 0:02:40.4]} 16. c3 {[%clk 0:02:15.7]} 16... Rac8 {[%clk 0:02:40.3]} 17.
Rfc1 {[%clk 0:02:13.8]} 17... Rc7 {[%clk 0:02:34.8]} 18. Kf1 {[%clk 0:02:07.1]}
18... Rfc8 {[%clk 0:02:34.6]} 19. dxc5 {[%clk 0:01:53.2]} 19... Bxc5 {[%clk
0:02:29.2]} 20. f4 {[%clk 0:01:53.5]} 20... g5 {[%clk 0:02:22.5]} 21. Bf3 {[%clk
0:01:47.9]} 21... b5 {[%clk 0:02:16.6]} 22. Ke1 {[%clk 0:01:44.7]} 22... Nb6
{[%clk 0:02:14.7]} 23. Kd1 {[%clk 0:01:33]} 23... Nc4 {[%clk 0:02:10]} 24. b3
{[%clk 0:01:30.7]} 24... Ne3+ {[%clk 0:02:06]} 25. Kd2 {[%clk 0:01:29.4]} 25...
Nf5 {[%clk 0:02:06.6]} 26. b4 {[%clk 0:01:21.9]} 26... Be3+ {[%clk 0:02:06]} 0-1

[Event "*** Titled Tuesday Blitz"]
[Site "Chess.com"]
[Date "2020.04.28"]
[Round "1"]
[White "RovenVogel"]
[Black "Hadza_3"]
[Result "1-0"]
[WhiteElo "2708"]
[BlackElo "2369"]
[TimeControl "180+1"]
[EndTime "10:03:55 PDT"]
[Termination "RovenVogel won by resignation"]

1. d4 {[%clk 0:02:51.2]} 1... Nf6 {[%clk 0:02:59.5]} 2. c4 {[%clk 0:02:48.4]}
2... e6 {[%clk 0:02:58.6]} 3. Nf3 {[%clk 0:02:47.7]} 3... Bb4+ {[%clk 0:02:58]}
4. Nbd2 {[%clk 0:02:42.9]} 4... b6 {[%clk 0:02:57.6]} 5. g3 {[%clk 0:02:40.7]}
5... Bb7 {[%clk 0:02:57.8]} 6. Bg2 {[%clk 0:02:41]} 6... a5 {[%clk 0:02:54.9]}
7. O-O {[%clk 0:02:41.1]} 7... Be7 {[%clk 0:02:50.9]} 8. b3 {[%clk 0:02:37.9]}
8... d6 {[%clk 0:02:48.8]} 9. Bb2 {[%clk 0:02:36.4]} 9... c5 {[%clk 0:02:44.5]}
10. d5 {[%clk 0:02:31.8]} 10... exd5 {[%clk 0:02:37.7]} 11. Nh4 {[%clk
0:02:31.5]} 11... Qd7 {[%clk 0:02:15.2]} 12. cxd5 {[%clk 0:02:29.9]} 12... Na6
{[%clk 0:01:38.8]} 13. Nc4 {[%clk 0:02:27.6]} 13... Bd8 {[%clk 0:01:27.4]} 14.
Nf5 {[%clk 0:02:23]} 14... Bc7 {[%clk 0:01:05.6]} 15. Nxg7+ {[%clk 0:02:19.1]}
15... Ke7 {[%clk 0:01:00.2]} 16. e4 {[%clk 0:02:18.1]} 16... Ng4 {[%clk
0:00:36.1]} 17. Nf5+ {[%clk 0:02:16.9]} 1-0

[Event "*** Titled Tuesday Blitz"]
[Site "Chess.com"]
[Date "2020.04.28"]
[Round "1"]
[White "Juanovic"]
[Black "TudorAnton"]
[Result "1/2-1/2"]
[WhiteElo "2155"]
[BlackElo "2513"]
[TimeControl "180+1"]
[EndTime "10:03:58 PDT"]
[Termination "Game drawn by repetition"]

1. e4 {[%clk 0:03:00.9]} 1... e5 {[%clk 0:02:58.9]} 2. Nf3 {[%clk 0:03:00.8]}
2... Nc6 {[%clk 0:02:57.3]} 3. Bb5 {[%clk 0:03:00.6]} 3... a6 {[%clk 0:02:57]}
4. Ba4 {[%clk 0:03:00.5]} 4... Nf6 {[%clk 0:02:56.3]} 5. O-O {[%clk 0:03:00.4]}
5... b5 {[%clk 0:02:56.6]} 6. Bb3 {[%clk 0:02:59.8]} 6... Bc5 {[%clk 0:02:57.5]}
7. d3 {[%clk 0:02:58.5]} 7... d6 {[%clk 0:02:57.6]} 8. Nc3 {[%clk 0:02:58.7]}
8... Bg4 {[%clk 0:02:56.6]} 9. h3 {[%clk 0:02:59]} 9... Bxf3 {[%clk 0:02:55.5]}
10. Qxf3 {[%clk 0:02:58.8]} 10... Nd4 {[%clk 0:02:56]} 11. Qd1 {[%clk
0:02:59.1]} 11... O-O {[%clk 0:02:53.7]} 12. Be3 {[%clk 0:02:57.6]} 12... Nxb3
{[%clk 0:02:52.9]} 13. axb3 {[%clk 0:02:57.1]} 13... Bxe3 {[%clk 0:02:53]} 14.
fxe3 {[%clk 0:02:57.6]} 14... c6 {[%clk 0:02:53.4]} 15. Qf3 {[%clk 0:02:55.5]}
15... Nd7 {[%clk 0:02:53.6]} 16. d4 {[%clk 0:02:47]} 16... f6 {[%clk 0:02:51.8]}
17. b4 {[%clk 0:02:46.8]} 17... a5 {[%clk 0:02:50]} 18. bxa5 {[%clk 0:02:46.3]}
18... Rxa5 {[%clk 0:02:50.9]} 19. Qg4 {[%clk 0:02:42.3]} 19... Rxa1 {[%clk
0:02:43.5]} 20. Qe6+ {[%clk 0:02:40.3]} 20... Kh8 {[%clk 0:02:42.9]} 21. Rxa1
{[%clk 0:02:41.2]} 21... Nb6 {[%clk 0:02:39.8]} 22. Ra7 {[%clk 0:02:38.1]} 22...
Nc8 {[%clk 0:02:36.1]} 23. Ra8 {[%clk 0:02:10.1]} 23... Re8 {[%clk 0:02:33.3]}
24. Qf7 {[%clk 0:02:04.6]} 24... Rf8 {[%clk 0:02:25.1]} 25. Qb7 {[%clk
0:01:56.4]} 25... exd4 {[%clk 0:02:23.2]} 26. exd4 {[%clk 0:01:56]} 26... Qe8
{[%clk 0:02:22.9]} 27. b4 {[%clk 0:01:49.7]} 27... Kg8 {[%clk 0:02:16.6]} 28. d5
{[%clk 0:01:26]} 28... c5 {[%clk 0:02:12.3]} 29. bxc5 {[%clk 0:01:24.4]} 29...
dxc5 {[%clk 0:02:12.2]} 30. Nxb5 {[%clk 0:01:23.8]} 30... Qxe4 {[%clk
0:02:09.9]} 31. Rxc8 {[%clk 0:01:21.9]} 31... Qe1+ {[%clk 0:02:09.9]} 32. Kh2
{[%clk 0:01:21.5]} 32... Qe5+ {[%clk 0:02:10.3]} 33. Kg1 {[%clk 0:01:21.8]}
33... Qe1+ {[%clk 0:02:09.3]} 34. Kh2 {[%clk 0:01:22]} 34... Qe5+ {[%clk
0:02:09.6]} 35. Kg1 {[%clk 0:01:21.1]} 35... Qe1+ {[%clk 0:02:10.2]} 1/2-1/2

[Event "*** Titled Tuesday Blitz"]
[Site "Chess.com"]
[Date "2020.04.28"]
[Round "1"]
[White "ZarinaShafigullina"]
[Black "wadsy27"]
[Result "0-1"]
[WhiteElo "2178"]
[BlackElo "2534"]
[TimeControl "180+1"]
[EndTime "10:04:02 PDT"]
[Termination "wadsy27 won by resignation"]

1. d4 {[%clk 0:03:00.9]} 1... Nf6 {[%clk 0:02:59.2]} 2. Nf3 {[%clk 0:03:00.6]}
2... c5 {[%clk 0:02:58.6]} 3. g3 {[%clk 0:03:00.5]} 3... cxd4 {[%clk 0:02:51.8]}
4. Nxd4 {[%clk 0:03:00.6]} 4... e5 {[%clk 0:02:51.9]} 5. Nf3 {[%clk 0:02:59.7]}
5... Nc6 {[%clk 0:02:51.2]} 6. Bg2 {[%clk 0:02:59.3]} 6... Bc5 {[%clk
0:02:49.9]} 7. O-O {[%clk 0:02:58.1]} 7... e4 {[%clk 0:02:50]} 8. Ng5 {[%clk
0:02:50.9]} 8... e3 {[%clk 0:02:50]} 9. f4 {[%clk 0:02:40.2]} 9... d5 {[%clk
0:02:44]} 10. Qd3 {[%clk 0:02:29.7]} 10... O-O {[%clk 0:02:27.5]} 11. Bxe3
{[%clk 0:02:21]} 11... Nb4 {[%clk 0:02:26.7]} 12. Qd2 {[%clk 0:01:57.8]} 12...
Bxe3+ {[%clk 0:02:25.5]} 13. Qxe3 {[%clk 0:01:58]} 13... Nxc2 {[%clk 0:02:25.8]}
14. Qd3 {[%clk 0:01:57.6]} 14... Nxa1 {[%clk 0:02:25.4]} 15. Nc3 {[%clk
0:01:57.4]} 15... h6 {[%clk 0:02:17.3]} 16. Nf3 {[%clk 0:01:52.5]} 16... Qb6+
{[%clk 0:02:15.2]} 17. Nd4 {[%clk 0:01:44.3]} 17... Nc2 {[%clk 0:02:00.6]} 18.
Qxc2 {[%clk 0:01:26.6]} 18... Qxd4+ {[%clk 0:01:58.9]} 19. Kh1 {[%clk
0:01:26.1]} 19... Ng4 {[%clk 0:01:49.6]} 20. h3 {[%clk 0:01:13.7]} 20... Ne3
{[%clk 0:01:48.3]} 21. Qc1 {[%clk 0:01:11.7]} 21... Nxf1 {[%clk 0:01:47.4]} 0-1

[Event "*** Titled Tuesday Blitz"]
[Site "Chess.com"]
[Date "2020.04.28"]
[Round "1"]
[White "bubacik"]
[Black "aa175"]
[Result "0-1"]
[WhiteElo "2790"]
[BlackElo "2441"]
[TimeControl "180+1"]
[EndTime "10:04:07 PDT"]
[Termination "aa175 won on time"]

1. Nf3 {[%clk 0:02:59.7]} 1... d5 {[%clk 0:02:59.6]} 2. d4 {[%clk 0:02:59]} 2...
Nf6 {[%clk 0:02:57.2]} 3. c4 {[%clk 0:02:58.6]} 3... g6 {[%clk 0:02:56.3]} 4.
cxd5 {[%clk 0:02:48]} 4... Bg7 {[%clk 0:02:56.2]} 5. g3 {[%clk 0:02:43.3]} 5...
O-O {[%clk 0:02:54.8]} 6. Bg2 {[%clk 0:02:43.7]} 6... Nxd5 {[%clk 0:02:54.9]} 7.
O-O {[%clk 0:02:44]} 7... Nc6 {[%clk 0:02:55]} 8. Nc3 {[%clk 0:02:44.1]} 8... e5
{[%clk 0:02:55]} 9. Nxd5 {[%clk 0:02:42.9]} 9... e4 {[%clk 0:02:55.3]} 10. Ne5
{[%clk 0:02:36.5]} 10... Qxd5 {[%clk 0:02:49.5]} 11. Nxc6 {[%clk 0:02:36.7]}
11... Qxc6 {[%clk 0:02:34.6]} 12. Be3 {[%clk 0:02:37.6]} 12... Bf5 {[%clk
0:02:29.8]} 0-1